Cogmind - Beta 14 @@@ ROGUE MODE // 2024.09.17 @ 20:38:25 Player: Burt Bravo Result: Destroyed by G-34 Mercenary with Small Laser Performance ------------- Evolutions (1) 500 Regions Visited (3) 600 Robots Destroyed (13) 65 Value Destroyed (274) 274 Prototype IDs (1) 20 Alien Tech Used (0) 0 Bonus (0) 0 TOTAL SCORE: 1459 Bonus ------- None Cogmind --------- Core Integrity 0/400 Matter 209/300 Energy 100/100 System Corruption 4% Temperature Cool (30) Movement Core (50) Location -9/Materials Parts ------- > --- POWER (2) -------- (None) > --- PROPULSION (3) --- (None) > --- UTILITY (2) ------ (None) > --- WEAPON (2) ------- (None) > --- INVENTORY (5) ---- Light Armor Plating Faulty Improved Medium Laser Shock Trap Shock Trap Peak State ------------ > --- POWER ------------ Ion Engine > --- PROPULSION ------- Improved Aluminum Leg Improved Aluminum Leg > --- UTILITY ---------- Small Storage Unit Visual Processing Unit > --- WEAPON ----------- Particle Gun Assault Rifle > --- INVENTORY -------- Ion Engine Light Ion Engine Flight Unit Flight Unit Flight Unit Heat Sink Grenade Launcher [Rating: 11] Favorites ----------- Power Ion Engine Engine Ion Engine Propulsion Flight Unit Leg Improved Aluminum Leg Wheel Wheel Flight Unit Flight Unit Utility Small Storage Unit Device Sensor Array Storage Small Storage Unit Processor Visual Processing Unit Protection Utility Shielding Weapon Assault Rifle Energy Gun EM Pulse Gun Ballistic Gun Assault Rifle Launcher Rocket Launcher Special Weapon Welding Torch Special Melee Weapon Datajack Build | -11 -10 -10 -9 ------- Run | Yrd Mat Min Mat Slots Evolved 2 | . . . 2 Power 1 | . . . 1 Propulsion 1 | . . . 1 Utility . | . . . . Weapon . | . . . . Parts Attached 28 | 8 9 7 4 Power 3 | 1 1 1 . Engine 3 | 1 1 1 . Core . | . . . . Reactor . | . . . . Propulsion 8 | 2 4 1 1 Treads . | . . . . Leg 2 | . 2 . . Wheel 2 | 2 . . . Hover . | . . . . Flight 4 | . 2 1 1 Utility 5 | 1 1 3 . Device 1 | . . 1 . Storage 1 | 1 . . . Processor 1 | . 1 . . Hackware . | . . . . Protection 2 | . . 2 . Artifact . | . . . . Weapon 12 | 4 3 2 3 Energy Gun 4 | 1 1 1 1 Energy Cannon . | . . . . Ballistic Gun 3 | 3 . . . Ballistic Cannon . | . . . . Launcher 3 | . 1 . 2 Special Weapon 1 | . . 1 . Impact Weapon . | . . . . Slashing Weapon . | . . . . Piercing Weapon . | . . . . Special Melee Weapon 1 | . 1 . . Unidentified Prototypes 1 | . . . 1 Parts Lost 8 | . 1 . 7 Power 1 | . . . 1 Propulsion 4 | . 1 . 3 Utility 1 | . . . 1 Weapon 2 | . . . 2 Highest Loss Streak 6 | . 1 . 6 To Critical Strikes 1 | . . . 1 Average Slot Usage (%) 85 | . 87 97 66 Engine 12 | . 14 14 7 Leg 8 | . 15 . . Wheel 4 | . 7 . . Flight 13 | . 3 28 22 Device 4 | . . 10 9 Storage 6 | . 12 . . Processor 3 | . 4 3 . Protection 4 | . . 12 9 Energy Gun 8 | . 11 9 . Ballistic Gun 7 | . 12 . . Launcher 2 | . 2 . 7 Special Weapon 1 | . . 4 . Special Melee Weapon 5 | . 1 14 8 Peak Build Rating 11 | 6 11 9 10 Average Rating 6 | 3 7 7 6 On Entrance 5 | . 6 7 7 Naked Turns 13 | . . . 13 Heaviest Build 15 | 14 15 10 10 Greatest Support 26 | 26 26 8 12 Greatest Overweight (x) 2 | 2 1 1 1 Average Overweight (x) . | . . . . Largest Inventory Capacity 8 | 8 8 5 5 Average Capacity 6 | 7 7 5 5 Most Carried 8 | 4 8 5 5 Average Carried 4 | 1 5 3 3 Final Capacity 8 | 8 5 5 5 Final Carried 4 | 2 3 4 4 Class Distribution -------------------- 100% | Mutant Dominant Class ---------------- Mutant | -10/Materials Mutant | -10/Mines Mutant | -9/Materials Resources | -11 -10 -10 -9 ----------- Run | Yrd Mat Min Mat Matter Collected 527 | 173 222 132 . Remotely . | . . . . Salvage Created 306 | . 252 . 54 Parts 28 | . 26 . 2 Haulers Intercepted . | . . . . Recyclers Shooed . | . . . . Parts Field Recycled . | . . . . Retrieved Matter . | . . . . Parts Self-Destructed . | . . . . Prevented . | . . . . Kills | -11 -10 -10 -9 ------- Run | Yrd Mat Min Mat Combat Hostiles Destroyed 10 | . 9 . 1 Guns 9 | . 9 . . AOE 1 | . . . 1 Classes Destroyed 3 | . 3 . . Watcher 3 | . 2 . 1 Swarmer 6 | . 6 . . Grunt 4 | . 3 . 1 Best Kill Streak 7 | . 7 . 1 Combat Bots Only 5 | . 5 . 1 Max Kills in Single Turn 2 | . 2 . 1 Gunslinging . | . . . . Exploded 1 | . . . 1 Melee . | . . . . Uniques/NPCs Destroyed . | . . . . Combat | -11 -10 -10 -9 -------- Run | Yrd Mat Min Mat Hostile Shots Fired 211 | . 98 27 86 Missed 85 | . 34 20 31 Damage Taken 1233 | . 589 57 587 Core 554 | . 131 20 403 Absorbed by Shields . | . . . . Redirected to Shielding 6 | . . . 6 Core Remaining (%) 69 | 100 . 39 . Volleys Fired 41 | . 34 1 6 Largest 2 | . 2 1 1 Hottest 85 | . 85 20 33 Shots Fired 57 | . 50 1 6 Gun 49 | . 49 . . Cannon . | . . . . Launcher 7 | . 1 . 6 Special 1 | . . 1 . Kinetic 34 | . 34 . . Thermal 4 | . 3 1 . Explosive 7 | . 1 . 6 Electromagnetic 12 | . 12 . . Robot Hit Streak 5 | . 4 3 5 Robot Miss Streak 4 | . 4 . 2 Penetration Max . | . . . . Secondary Targets 1 | . 1 . . Max Gunslinging Chain 1 | . 1 . . Shots Hit Robots 36 | . 30 3 3 Core Hits 16 | . 13 . 3 Critical Kills . | . . . . Critical Parts Destroyed . | . . . . Critical Strikes . | . . . . Melee Attacks 5 | . 3 2 . Impact . | . . . . Slashing . | . . . . Piercing . | . . . . Sneak Attacks 3 | . 2 1 . Combat Hostiles . | . . . . Follow-up Attacks . | . . . . Damage Inflicted 605 | . 447 4 154 Guns 369 | . 369 . . Cannons . | . . . . Explosions 232 | . 78 . 154 Melee . | . . . . Ramming . | . . . . Kinetic 254 | . 254 . . Thermal 116 | . 112 4 . Explosive 154 | . . . 154 Electromagnetic 81 | . 81 . . Impact . | . . . . Slashing . | . . . . Piercing . | . . . . Highest Corruption 4 | . . . 4 Average Corruption 4 | . . . 4 Corruption Purged . | . . . . Corruption Blocked . | . . . . Effects 5 | . . . 5 Heat Flow Errors 3 | . . . 3 Parts Rejected 1 | . . . 1 Data Loss (minor) 1 | . . . 1 Overload Shots . | . . . . Overflow Damage . | . . . . Projectiles . | . . . . Explosions . | . . . . Melee . | . . . . Knockbacks . | . . . . Impact . | . . . . Kinetic . | . . . . Secondary . | . . . . Self-Inflicted Damage 32 | . . . 32 Shots 1 | . . . 1 Rammed . | . . . . Targets Rammed . | . . . . Kicked . | . . . . Crushed . | . . . . Highest Temperature 165 | . 66 . 165 Average Temperature 53 | . 29 . 68 Received Heat Transfer 288 | . 177 . 111 Siege Activations . | . . . . Robots Corrupted . | . . . . Combat Hostiles . | . . . . Parts Fried . | . . . . Impact Corruptions . | . . . . Robots Melted . | . . . . Combat Hostiles . | . . . . Parts Melted . | . . . . Heat Transferred 149 | . 124 25 . Parts Sabotaged . | . . . . Parts Stolen . | . . . . Parts Stripped . | . . . . Power Chain Reactions 1 | . 1 . . Alert | -11 -10 -10 -9 ------- Run | Yrd Mat Min Mat Peak Influence 348 | . 276 148 348 Initial 57 | . . 48 57 Average 97 | . 110 57 187 Maximum Alert Level 1 | . 1 . 1 Low Security (%) 79 | 100 73 100 52 Level 1 20 | . 26 . 47 Level 2 . | . . . . Level 3 . | . . . . Level 4 . | . . . . Level 5 . | . . . . High Security . | . . . . Max Security . | . . . . Squads Dispatched 5 | . 3 . 2 Investigation 2 | . 1 . 1 Extermination . | . . . . Reinforcement 3 | . 2 . 1 Assault . | . . . . Garrison . | . . . . Intercept . | . . . . Searches Triggered . | . . . . Construction Impeded . | . . . . Haulers Reinforced . | . . . . Active Scanning Responses . | . . . . Cargo Convoy Interrupts . | . . . . Stealth | -11 -10 -10 -9 --------- Run | Yrd Mat Min Mat Distress Signals 4 | . 2 . 2 Communications Jammed . | . . . . Distress Signals . | . . . . Times Spotted 47 | . 19 9 19 Peak Tracking Total 12 | . 6 3 12 Tactical Retreats 6 | . 2 2 2 Traps | -11 -10 -10 -9 ------- Run | Yrd Mat Min Mat Traps Triggered 1 | . 1 . . Indirectly . | . . . . Trap Hack Attempts . | . . . . Triggered . | . . . . Disarmed . | . . . . Reprogrammed . | . . . . Reused 1 | . . 1 . Traps Extracted . | . . . . Installed 1 | . . 1 . Triggered 1 | . . 1 . Most Traps Carried 3 | . . 3 2 Machines | -11 -10 -10 -9 ---------- Run | Yrd Mat Min Mat Machines Disabled 3 | . . . 3 Max in Single Turn 2 | . . . 2 Machines Repaired . | . . . . Machines Dismantled . | . . . . Machines Sabotaged . | . . . . Overloaded Fab Kills . | . . . . Hacking | -11 -10 -10 -9 --------- Run | Yrd Mat Min Mat Machines Accessed 2 | . . . 2 Terminals 1 | . . . 1 Fabricators . | . . . . Repair Stations . | . . . . Recycling Units 1 | . . . 1 Scanalyzers . | . . . . Garrison Access . | . . . . Total Hacks 8 | . . . 8 Successful 6 | . . . 6 Failed 2 | . . . 2 Catastrophic 1 | . . . 1 Database Lockouts . | . . . . Manual . | . . . . Terminals 4 | . . . 4 Fabricators . | . . . . Repair Stations . | . . . . Recycling Units 4 | . . . 4 Scanalyzers . | . . . . Garrison Access . | . . . . Terminal Hacks 3 | . . . 3 Record 3 | . . . 3 Fabricator Hacks . | . . . . Repair Station Hacks . | . . . . Recycling Unit Hacks 3 | . . . 3 Recycle Component 2 | . . . 2 Report Inventory 1 | . . . 1 Scanalyzer . | . . . . Garrison Access Hacks . | . . . . Unauthorized Hacks . | . . . . Terminals . | . . . . Fabricators . | . . . . Repair Stations . | . . . . Recycling Units . | . . . . Scanalyzers . | . . . . Garrison Access . | . . . . Data Cores Recovered . | . . . . Used . | . . . . Hacking Detections 2 | . . . 2 Full Trace Events 1 | . . . 1 Feedback Events . | . . . . Feedback Blocked . | . . . . Robot Schematics Acquired . | . . . . Robots Built . | . . . . Authchips . | . . . . Time . | . . . . Total Robot Build Rating . | . . . . Part Schematics Acquired . | . . . . Parts Built . | . . . . Authchips . | . . . . Time . | . . . . Total Part Build Rating . | . . . . Parts Repaired . | . . . . Time . | . . . . Parts Recycled 2 | . . . 2 Recycled Matter . | . . . . Retrieved Matter . | . . . . Retrieved Components . | . . . . Parts Scanalyzed . | . . . . Part Schematics Acquired . | . . . . Parts Damaged . | . . . . Bothacking | -11 -10 -10 -9 ------------ Run | Yrd Mat Min Mat Used RIF Installer . | . . . . Robots Hacked 4 | . 2 2 . Non-combat 2 | . 1 1 . Combat 2 | . 1 1 . Robot Hacks Applied 4 | . 2 2 . parse_system 3 | . 1 2 . no_distress 1 | . 1 . . Relay Couplers Released . | . . . . Fabnet Peak Effective % . | . . . . Robots Rewired . | . . . . Allies Hacked . | . . . . Hacks Repelled . | . . . . Allies | -11 -10 -10 -9 -------- Run | Yrd Mat Min Mat Total Allies . | . . . . Largest Group . | . . . . Highest-Rated Group . | . . . . Highest-Rated Ally . | . . . . Total Orders . | . . . . Ally Attacks . | . . . . Total Damage . | . . . . Kills . | . . . . Allies Corrupted . | . . . . Allies Melted . | . . . . Intel | -11 -10 -10 -9 ------- Run | Yrd Mat Min Mat Robot Analysis Total . | . . . . Derelict Logs Recovered 1 | . . 1 . Drone Launches . | . . . . Drone Recoveries . | . . . . Exploration | -11 -10 -10 -9 ------------- Run | Yrd Mat Min Mat Turns Passed 980 | 142 464 202 172 Spaces Moved 1233 | 130 381 424 298 Core 100 | 78 . . 22 Treads . | . . . . Legs 135 | . 135 . . Wheels 179 | 52 127 . . Hover . | . . . . Flight 819 | . 119 424 276 Fastest Speed 34 | 50 37 37 34 Average Speed 61 | 80 86 40 50 Slowest Speed 150 | 150 120 117 120 Overloaded Moves . | . . . . Propulsion Burnouts . | . . . . Robots Hopped 2 | . 2 . . Cave-ins Triggered . | . . . . Exploration Rate (%) 36 | 6 40 77 21 Regions Visited 3 Branch Regions 1 Pre-discovered Areas . | . . . . Known Exits Taken . | . . . . Unknown Exits Taken 3 | 1 1 1 . Scrap Searched 2 | . . 2 . Spaces Dug . | . . . . Terrain Destroyed 63 | . 12 . 51 Melee . | . . . . Projectile . | . . . . AOE 63 | . 12 . 51 Terrain Rammed . | . . . . Walls Destroyed . | . . . . Machines Disabled . | . . . . Actions | -11 -10 -10 -9 --------- Run | Yrd Mat Min Mat Total 1404 | 167 468 455 314 Wait 42 | 21 15 4 2 Move 1226 | 129 376 423 298 Hop 2 | . 2 . . Pick Up 32 | 7 13 9 3 Fast Attach 1 | 1 . . . Attach 23 | 7 8 6 2 Detach 10 | 2 4 3 1 Swap 4 | . 1 1 2 Drop 17 | . 12 5 . Fire 41 | . 34 1 6 Melee 5 | . 3 2 . Ram . | . . . . Kick . | . . . . Crush . | . . . . Escape Stasis . | . . . . Rewire . | . . . . Trap 1 | . . 1 . Miscellaneous . | . . . . Route ------- -11/Scrapyard -10/Materials (discovered 2 exits: [*Min x2]) -10/Mines -9/Materials History --------- Turn | Location | Event 9 | -11/Scrapyard | Discovered new exit (range 14) 143 | -11/Scrapyard | Entered Materials 301 | -10/Materials | Build established: Mutant 435 | -10/Materials | Discovered new exit (range 12) 598 | -10/Materials | Discovered new exit (range 16) 605 | -10/Materials | Core integrity fell below 50% 607 | -10/Materials | Entered Mines 612 | -10/Mines | Found DCF Scrap (15 items) 763 | -10/Mines | Found a hidden stash of uninstalled traps 804 | -10/Mines | Discovered new exit (range 15) 809 | -10/Mines | Entered Materials 809 | -9/Materials | Evolved 2 slots: Power x1, Propulsion x1 979 | -9/Materials | Core integrity fell below 50% 981 | -9/Materials | Core integrity fell below 20% 981 | -9/Materials | Destroyed by G-34 Mercenary with Small Laser Last Messages --------------- 00924_ G-34 Mercenary destroyed. 00930_ Critical hit (Destroy). 00930_ Lgt. Ion Engine destroyed. 00939_ Connecting with Recycling Unit... 00939_ ALERT: Suspicious activity at Recycling Unit M001. Dispatching Investigation squad. 00941_ System corrupted: Heat flow error (+171). 00943_ Flight Unit destroyed. 00949_ Datajack destroyed. 00950_ Rocket Launcher destroyed. 00950_ S-10 Pest destroyed. 00951_ Sensor Array destroyed. 00953_ W-16 Scout sends out distress signal. 00958_ System corrupted: Utility Shielding rejected. 00960_ K-01 Serf collects debris. 00963_ K-01 Serf cleans the Processing Tank. 00965_ K-01 Serf cleans the Electrolysis Chamber. 00968_ Flight Unit destroyed. 00975_ Critical hit (Burn: +37). 00981_ K-01 Serf collects debris. Map ----- +----------------------------------------------------+ | | | ?????????????????????????????????????????????????? | | ?????????????????????????????????????????????????? | | ?????????????????????????????????????????????????? | | ?????????????????????????????????????????????????? | | ?????????????????????????????????????????????????? | | ?????????????????????????????????????????????????? | | ???????????????????????###+##????????????????????? | | ?????????????#######???# #????????????????????? | | ?????????????? ??? #????????????????????? | | ??????????????? ???? +????????????????????? | | ????????????????# #???? ?????????????????????? | | ????????????????# ###### t#?????????????????????? | | ????????????????# + # #?????????????????????? | | ????????????????# # # #?????????????????????? | | ????????????????# # + #?????????????????????? | | ????????????????# # # #?????????????????????? | | ????????????????# # # ###########???????????? | | ????????????????# ###### # #???????????? | | ????????????????# ###### # #???????????? | | ???????########## ! s # #???????????? | | ??????? # s + #???????????? | | ???????? """"" # """ # #???????????? | | ???????? """"" + """ s # #???????????? | | ???????? """"" # """ # #???????????? | | ??????? # @ # #???????????? | | ???????########## Y ###########???????????? | | ???????########## <<